[Event "Early-Titled-Tuesday-Blitz-September-26-2023"]
[Site "Chess.com"]
[Date "2023.09.26"]
[Round "2"]
[White "ShahMatKanal"]
[Black "YouShallNotPass001"]
[Result "1-0"]
[WhiteElo "2512"]
[BlackElo "2310"]
[TimeControl "180+1"]
[EndTime "8:14:43 PDT"]
[Termination "ShahMatKanal won by resignation"]

1. d4 {[%clk 0:03:00.9]} 1... Nf6 {[%clk 0:03:00.1]} 2. c4 {[%clk 0:03:00.6]}
2... e6 {[%clk 0:03:01]} 3. a3 {[%clk 0:03:00.1]} 3... c5 {[%clk 0:02:59.3]} 4.
Nf3 {[%clk 0:02:58.8]} 4... cxd4 {[%clk 0:02:58.5]} 5. Nxd4 {[%clk 0:02:59.7]}
5... d5 {[%clk 0:02:57.2]} 6. e3 {[%clk 0:02:58.8]} 6... Be7 {[%clk 0:02:56.5]}
7. Nc3 {[%clk 0:02:57.1]} 7... O-O {[%clk 0:02:55.6]} 8. cxd5 {[%clk 0:02:54.9]}
8... exd5 {[%clk 0:02:53.3]} 9. Be2 {[%clk 0:02:52.4]} 9... Nc6 {[%clk
0:02:53.2]} 10. O-O {[%clk 0:02:51.9]} 10... Re8 {[%clk 0:02:52.4]} 11. b4
{[%clk 0:02:43.3]} 11... Ne5 {[%clk 0:02:49.7]} 12. Bb2 {[%clk 0:02:29.5]} 12...
a6 {[%clk 0:02:47.5]} 13. Qb3 {[%clk 0:02:25.6]} 13... Bd6 {[%clk 0:02:31.9]}
14. Nxd5 {[%clk 0:02:06.6]} 14... Nxd5 {[%clk 0:02:30.8]} 15. Qxd5 {[%clk
0:02:07.5]} 15... Ng4 {[%clk 0:02:27.2]} 16. Bc4 {[%clk 0:01:40.9]} 16... Be6
{[%clk 0:01:30.2]} 17. Nxe6 {[%clk 0:01:38.2]} 17... Bxh2+ {[%clk 0:01:30.3]}
18. Kh1 {[%clk 0:01:37.3]} 18... Qh4 {[%clk 0:01:30.3]} 19. Qg5 {[%clk
0:01:16.9]} 1-0

[Event "Early-Titled-Tuesday-Blitz-September-26-2023"]
[Site "Chess.com"]
[Date "2023.09.26"]
[Round "2"]
[White "whiteglovethief"]
[Black "AsselLesbekova"]
[Result "1-0"]
[WhiteElo "2495"]
[BlackElo "2277"]
[TimeControl "180+1"]
[EndTime "8:14:51 PDT"]
[Termination "whiteglovethief won by resignation"]

1. d4 {[%clk 0:03:00.9]} 1... d5 {[%clk 0:03:00.1]} 2. c4 {[%clk 0:02:57.7]}
2... e6 {[%clk 0:02:59.8]} 3. Nf3 {[%clk 0:02:58.2]} 3... a6 {[%clk 0:02:59.6]}
4. g3 {[%clk 0:02:56.2]} 4... dxc4 {[%clk 0:02:59.1]} 5. Bg2 {[%clk 0:02:55.6]}
5... b5 {[%clk 0:02:59.2]} 6. Ne5 {[%clk 0:02:53.1]} 6... c6 {[%clk 0:02:49.4]}
7. Nxc6 {[%clk 0:02:51]} 7... Qb6 {[%clk 0:02:49.6]} 8. Nxb8 {[%clk 0:02:49.8]}
8... Rxb8 {[%clk 0:02:49.7]} 9. O-O {[%clk 0:02:49.9]} 9... Bb7 {[%clk
0:02:47.3]} 10. e4 {[%clk 0:02:50.4]} 10... Nf6 {[%clk 0:02:46.8]} 11. d5 {[%clk
0:02:42.8]} 11... Rd8 {[%clk 0:02:40.2]} 12. Nc3 {[%clk 0:02:37.4]} 12... Bb4
{[%clk 0:02:34.3]} 13. Bg5 {[%clk 0:02:27.6]} 13... h6 {[%clk 0:02:27.9]} 14.
Bxf6 {[%clk 0:02:25.7]} 14... gxf6 {[%clk 0:02:28]} 15. Qh5 {[%clk 0:02:25.7]}
15... exd5 {[%clk 0:02:07.6]} 16. exd5 {[%clk 0:02:12.3]} 16... Bxc3 {[%clk
0:01:59.2]} 17. bxc3 {[%clk 0:02:13.2]} 17... Kf8 {[%clk 0:01:57.7]} 18. Rfe1
{[%clk 0:02:11.7]} 18... Bc8 {[%clk 0:01:53]} 19. a4 {[%clk 0:02:04]} 19... Kg7
{[%clk 0:01:50.4]} 20. axb5 {[%clk 0:02:03.2]} 20... axb5 {[%clk 0:01:49.5]} 21.
Ra8 {[%clk 0:02:02.1]} 21... Bd7 {[%clk 0:01:37.8]} 22. Re7 {[%clk 0:01:56.5]}
22... Be8 {[%clk 0:01:29.3]} 23. Raa7 {[%clk 0:01:54.7]} 23... Rf8 {[%clk
0:01:24]} 24. Be4 {[%clk 0:01:51.8]} 24... f5 {[%clk 0:01:14.6]} 25. Qxf5 {[%clk
0:01:45.4]} 25... b4 {[%clk 0:01:04.5]} 26. Qh7+ {[%clk 0:01:43.1]} 1-0

[Event "Early-Titled-Tuesday-Blitz-September-26-2023"]
[Site "Chess.com"]
[Date "2023.09.26"]
[Round "2"]
[White "verrbaa"]
[Black "Darko-Dimitrijevic"]
[Result "1-0"]
[WhiteElo "2412"]
[BlackElo "1963"]
[TimeControl "180+1"]
[EndTime "8:14:58 PDT"]
[Termination "verrbaa won by resignation"]

1. Nf3 {[%clk 0:03:00.9]} 1... c5 {[%clk 0:02:59]} 2. g3 {[%clk 0:02:57.4]} 2...
g6 {[%clk 0:02:58.3]} 3. Bg2 {[%clk 0:02:57.4]} 3... Bg7 {[%clk 0:02:58.3]} 4.
O-O {[%clk 0:02:55.8]} 4... Nc6 {[%clk 0:02:58]} 5. c4 {[%clk 0:02:53.1]} 5...
a6 {[%clk 0:02:54.9]} 6. Nc3 {[%clk 0:02:52]} 6... Rb8 {[%clk 0:02:54.1]} 7. e3
{[%clk 0:02:37.6]} 7... b5 {[%clk 0:02:53.1]} 8. d4 {[%clk 0:02:07.2]} 8... cxd4
{[%clk 0:02:49.2]} 9. exd4 {[%clk 0:02:08.1]} 9... bxc4 {[%clk 0:02:48.9]} 10.
d5 {[%clk 0:02:08.1]} 10... Nb4 {[%clk 0:02:37]} 11. Bf4 {[%clk 0:01:44]} 11...
Nd3 {[%clk 0:02:30.6]} 12. Bxb8 {[%clk 0:01:43.1]} 12... Nxb2 {[%clk 0:02:24.6]}
13. Qc2 {[%clk 0:01:42.6]} 13... Nd3 {[%clk 0:02:22.5]} 14. Rab1 {[%clk
0:01:34.3]} 14... d6 {[%clk 0:02:20.7]} 15. Qa4+ {[%clk 0:01:24.9]} 15... Bd7
{[%clk 0:02:17.9]} 16. Qxc4 {[%clk 0:01:25.2]} 16... Nc5 {[%clk 0:02:16.1]} 17.
Ba7 {[%clk 0:01:24.2]} 17... Nf6 {[%clk 0:02:12]} 18. Rb8 {[%clk 0:01:22.8]}
18... Bc8 {[%clk 0:02:10.9]} 19. Bxc5 {[%clk 0:01:17.4]} 19... dxc5 {[%clk
0:02:10.6]} 20. Ne5 {[%clk 0:01:03]} 20... O-O {[%clk 0:02:09.6]} 21. Nc6 {[%clk
0:01:02.8]} 21... Qc7 {[%clk 0:02:06.4]} 22. Qxc5 {[%clk 0:00:57.4]} 22... Re8
{[%clk 0:02:04.1]} 23. Rfb1 {[%clk 0:00:54]} 23... h5 {[%clk 0:02:02.1]} 24.
Nxe7+ {[%clk 0:00:44.2]} 24... Rxe7 {[%clk 0:01:55.8]} 25. Rxc8+ {[%clk
0:00:43.8]} 1-0

[Event "Early-Titled-Tuesday-Blitz-September-26-2023"]
[Site "Chess.com"]
[Date "2023.09.26"]
[Round "2"]
[White "jeetjain"]
[Black "AlmasRakhmatullaev"]
[Result "0-1"]
[WhiteElo "2579"]
[BlackElo "2784"]
[TimeControl "180+1"]
[EndTime "8:15:01 PDT"]
[Termination "AlmasRakhmatullaev won by resignation"]

1. d4 {[%clk 0:03:00.9]} 1... Nf6 {[%clk 0:03:00]} 2. Nf3 {[%clk 0:03:00.9]}
2... g6 {[%clk 0:03:00.3]} 3. Bg5 {[%clk 0:02:58.3]} 3... Bg7 {[%clk 0:03:00.3]}
4. Nbd2 {[%clk 0:02:57]} 4... d6 {[%clk 0:03:00.8]} 5. c3 {[%clk 0:02:56.1]}
5... Nbd7 {[%clk 0:03:00.6]} 6. e3 {[%clk 0:02:56.2]} 6... O-O {[%clk
0:03:00.5]} 7. Be2 {[%clk 0:02:55.8]} 7... e5 {[%clk 0:02:52.1]} 8. O-O {[%clk
0:02:54.9]} 8... h6 {[%clk 0:02:49.5]} 9. Bxf6 {[%clk 0:02:54.2]} 9... Qxf6
{[%clk 0:02:47.4]} 10. a4 {[%clk 0:02:50]} 10... a5 {[%clk 0:02:44.8]} 11. Qb3
{[%clk 0:02:47.2]} 11... Kh8 {[%clk 0:02:41.8]} 12. Rac1 {[%clk 0:02:46]} 12...
Qe7 {[%clk 0:02:41.5]} 13. Rfd1 {[%clk 0:02:23]} 13... f5 {[%clk 0:02:39.4]} 14.
Nc4 {[%clk 0:02:09.6]} 14... e4 {[%clk 0:02:30.8]} 15. Ne1 {[%clk 0:02:06.5]}
15... Nf6 {[%clk 0:02:25.3]} 16. Na3 {[%clk 0:01:56.1]} 16... g5 {[%clk
0:02:20.9]} 17. c4 {[%clk 0:01:55]} 17... f4 {[%clk 0:02:14.2]} 18. c5 {[%clk
0:01:47.8]} 18... d5 {[%clk 0:02:12]} 19. c6 {[%clk 0:01:48.3]} 19... b6 {[%clk
0:02:10.3]} 20. Nb5 {[%clk 0:01:48.8]} 20... Be6 {[%clk 0:02:07.2]} 21. Qa3
{[%clk 0:01:47.9]} 21... Qf7 {[%clk 0:02:07.3]} 22. exf4 {[%clk 0:01:42.5]}
22... gxf4 {[%clk 0:02:06.7]} 23. f3 {[%clk 0:01:43.2]} 23... Rac8 {[%clk
0:02:03.6]} 24. Na7 {[%clk 0:01:36.8]} 24... Rce8 {[%clk 0:02:03.6]} 25. Nb5
{[%clk 0:01:37.4]} 25... h5 {[%clk 0:02:03.5]} 26. Nc2 {[%clk 0:01:04.5]} 26...
Rg8 {[%clk 0:02:02.9]} 27. Kh1 {[%clk 0:01:01.1]} 27... h4 {[%clk 0:02:03.3]}
28. h3 {[%clk 0:00:59.3]} 28... Bf8 {[%clk 0:01:57.4]} 29. Ne1 {[%clk
0:00:52.1]} 29... Bxa3 {[%clk 0:01:56.4]} 0-1

[Event "Early-Titled-Tuesday-Blitz-September-26-2023"]
[Site "Chess.com"]
[Date "2023.09.26"]
[Round "2"]
[White "Rozhkov_V"]
[Black "viktorskliarov"]
[Result "0-1"]
[WhiteElo "2397"]
[BlackElo "2653"]
[TimeControl "180+1"]
[EndTime "8:15:05 PDT"]
[Termination "viktorskliarov won by resignation"]

1. e4 {[%clk 0:03:00.9]} 1... c5 {[%clk 0:02:59.8]} 2. Nf3 {[%clk 0:03:01.3]}
2... Nc6 {[%clk 0:03:00.1]} 3. d4 {[%clk 0:03:01.9]} 3... cxd4 {[%clk 0:03:01]}
4. Nxd4 {[%clk 0:03:02.7]} 4... Nf6 {[%clk 0:03:01.7]} 5. Nc3 {[%clk 0:03:03.3]}
5... e5 {[%clk 0:03:02.4]} 6. Ndb5 {[%clk 0:03:04]} 6... d6 {[%clk 0:03:02.8]}
7. Bg5 {[%clk 0:03:03.6]} 7... a6 {[%clk 0:03:03.4]} 8. Na3 {[%clk 0:03:03.8]}
8... b5 {[%clk 0:03:04.3]} 9. Bxf6 {[%clk 0:03:04.4]} 9... gxf6 {[%clk
0:03:05.2]} 10. Nd5 {[%clk 0:03:05]} 10... f5 {[%clk 0:03:05.2]} 11. g3 {[%clk
0:03:03.2]} 11... Bg7 {[%clk 0:03:03.7]} 12. exf5 {[%clk 0:03:03.3]} 12... Bxf5
{[%clk 0:03:03.2]} 13. Bg2 {[%clk 0:03:04]} 13... Rc8 {[%clk 0:03:02.1]} 14. c3
{[%clk 0:02:50.7]} 14... O-O {[%clk 0:03:01.1]} 15. O-O {[%clk 0:02:49]} 15...
Ne7 {[%clk 0:02:57.1]} 16. Ne3 {[%clk 0:02:44.5]} 16... Be6 {[%clk 0:02:54.4]}
17. Nac2 {[%clk 0:02:43]} 17... d5 {[%clk 0:02:54.6]} 18. Nb4 {[%clk 0:02:41.3]}
18... d4 {[%clk 0:02:52.6]} 19. Nec2 {[%clk 0:02:22.4]} 19... a5 {[%clk
0:02:44.5]} 20. Nd3 {[%clk 0:02:15]} 20... dxc3 {[%clk 0:02:42.4]} 21. bxc3
{[%clk 0:02:14.9]} 21... Rxc3 {[%clk 0:02:42.4]} 22. Nde1 {[%clk 0:02:06.3]}
22... Qxd1 {[%clk 0:02:20.8]} 23. Rxd1 {[%clk 0:02:07.2]} 23... Bc4 {[%clk
0:02:21]} 24. Rd7 {[%clk 0:01:59.6]} 24... Nf5 {[%clk 0:02:10.7]} 25. Rc7 {[%clk
0:01:54.4]} 25... Nd4 {[%clk 0:01:51]} 26. Ne3 {[%clk 0:01:49.2]} 26... Bxf1
{[%clk 0:01:50.1]} 27. Rxc3 {[%clk 0:01:42.9]} 27... Ne2+ {[%clk 0:01:50.1]} 28.
Kxf1 {[%clk 0:01:43.8]} 28... Nxc3 {[%clk 0:01:50.5]} 29. Nd3 {[%clk 0:01:44.7]}
29... e4 {[%clk 0:01:45.3]} 30. Nc5 {[%clk 0:01:43.4]} 30... Bd4 {[%clk
0:01:44.7]} 31. Nb3 {[%clk 0:01:42.3]} 31... Bxe3 {[%clk 0:01:43]} 32. fxe3
{[%clk 0:01:43.2]} 32... a4 {[%clk 0:01:39.9]} 33. Nd2 {[%clk 0:01:43.8]} 33...
f5 {[%clk 0:01:37.8]} 34. a3 {[%clk 0:01:44.1]} 34... b4 {[%clk 0:01:36.1]} 35.
axb4 {[%clk 0:01:43.9]} 35... a3 {[%clk 0:01:36.5]} 36. Ke1 {[%clk 0:01:44.8]}
36... a2 {[%clk 0:01:36.2]} 37. Nb3 {[%clk 0:01:44.5]} 37... Rd8 {[%clk
0:01:32.5]} 38. Bf1 {[%clk 0:01:39.1]} 38... Rd1+ {[%clk 0:01:31.8]} 39. Kf2
{[%clk 0:01:40]} 39... Rb1 {[%clk 0:01:23.9]} 0-1

[Event "Early-Titled-Tuesday-Blitz-September-26-2023"]
[Site "Chess.com"]
[Date "2023.09.26"]
[Round "2"]
[White "Let_it_be_1"]
[Black "OparinGrigoriy"]
[Result "0-1"]
[WhiteElo "2626"]
[BlackElo "2969"]
[TimeControl "180+1"]
[EndTime "8:15:11 PDT"]
[Termination "OparinGrigoriy won by resignation"]

1. e4 {[%clk 0:03:00.9]} 1... c5 {[%clk 0:03:00.6]} 2. Nf3 {[%clk 0:03:00.9]}
2... e6 {[%clk 0:03:01.3]} 3. d4 {[%clk 0:03:01.1]} 3... cxd4 {[%clk 0:03:01.8]}
4. Nxd4 {[%clk 0:03:01.8]} 4... Nf6 {[%clk 0:03:02.6]} 5. Nc3 {[%clk 0:03:02]}
5... Nc6 {[%clk 0:03:03.4]} 6. Ndb5 {[%clk 0:03:01.9]} 6... d6 {[%clk
0:03:00.4]} 7. Bf4 {[%clk 0:03:01.6]} 7... e5 {[%clk 0:02:59.2]} 8. Bg5 {[%clk
0:03:02.1]} 8... a6 {[%clk 0:02:59.9]} 9. Na3 {[%clk 0:03:02.1]} 9... b5 {[%clk
0:03:00.3]} 10. Nd5 {[%clk 0:03:02.1]} 10... Be7 {[%clk 0:03:00.5]} 11. Bxf6
{[%clk 0:03:02.5]} 11... Bxf6 {[%clk 0:03:01.4]} 12. c3 {[%clk 0:03:02.9]} 12...
O-O {[%clk 0:02:54.8]} 13. Nc2 {[%clk 0:03:02.9]} 13... Rb8 {[%clk 0:02:55.3]}
14. h4 {[%clk 0:03:02.8]} 14... g6 {[%clk 0:02:50]} 15. g3 {[%clk 0:03:01.9]}
15... Bg7 {[%clk 0:02:46.1]} 16. Bg2 {[%clk 0:02:53.1]} 16... h5 {[%clk
0:02:39.9]} 17. O-O {[%clk 0:02:51]} 17... Be6 {[%clk 0:02:36.3]} 18. Nce3
{[%clk 0:02:44.1]} 18... Bh6 {[%clk 0:02:36.7]} 19. Qd3 {[%clk 0:02:42.8]} 19...
Ne7 {[%clk 0:02:00.9]} 20. Rad1 {[%clk 0:02:32.9]} 20... Nxd5 {[%clk 0:01:59.1]}
21. Nxd5 {[%clk 0:02:31.9]} 21... Kg7 {[%clk 0:01:59.8]} 22. Kh2 {[%clk
0:02:14.5]} 22... Qd7 {[%clk 0:01:47.9]} 23. Ne3 {[%clk 0:01:59.4]} 23... Rfd8
{[%clk 0:01:46.9]} 24. a3 {[%clk 0:01:53.7]} 24... a5 {[%clk 0:01:46.4]} 25. Rd2
{[%clk 0:01:51.3]} 25... b4 {[%clk 0:01:45.5]} 26. axb4 {[%clk 0:01:50.4]} 26...
axb4 {[%clk 0:01:46.4]} 27. Rfd1 {[%clk 0:01:49.3]} 27... bxc3 {[%clk
0:01:41.4]} 28. Qxc3 {[%clk 0:01:35]} 28... Qb5 {[%clk 0:01:41.5]} 29. Nd5
{[%clk 0:01:09.1]} 29... Bxd2 {[%clk 0:01:36.9]} 30. Rxd2 {[%clk 0:01:09.6]}
30... Bxd5 {[%clk 0:01:37.1]} 31. Rxd5 {[%clk 0:01:08.8]} 31... Qxb2 {[%clk
0:01:36.7]} 32. Qe3 {[%clk 0:01:04.9]} 32... Rb3 {[%clk 0:01:32]} 33. Qg5 {[%clk
0:01:03.3]} 33... f6 {[%clk 0:01:32.2]} 0-1

[Event "Early-Titled-Tuesday-Blitz-September-26-2023"]
[Site "Chess.com"]
[Date "2023.09.26"]
[Round "2"]
[White "TheoSlade"]
[Black "ZeGood_ZeBad_ZeUgly"]
[Result "1-0"]
[WhiteElo "2481"]
[BlackElo "2266"]
[TimeControl "180+1"]
[EndTime "8:15:29 PDT"]
[Termination "TheoSlade won by resignation"]

1. d4 {[%clk 0:03:00.9]} 1... d5 {[%clk 0:02:59.4]} 2. c4 {[%clk 0:03:01.3]}
2... c6 {[%clk 0:02:59.7]} 3. cxd5 {[%clk 0:03:00.7]} 3... cxd5 {[%clk
0:03:00.6]} 4. Bf4 {[%clk 0:03:00.5]} 4... Nf6 {[%clk 0:02:55.5]} 5. e3 {[%clk
0:03:00.9]} 5... Bf5 {[%clk 0:02:53.5]} 6. Qb3 {[%clk 0:02:47.6]} 6... Qd7
{[%clk 0:02:28.4]} 7. Nf3 {[%clk 0:02:44.7]} 7... Nc6 {[%clk 0:02:27]} 8. Ne5
{[%clk 0:02:44.9]} 8... Qc8 {[%clk 0:02:14.6]} 9. Nc3 {[%clk 0:02:41.9]} 9... e6
{[%clk 0:02:09.5]} 10. Rc1 {[%clk 0:02:31.8]} 10... Nxe5 {[%clk 0:02:02.1]} 11.
Bxe5 {[%clk 0:02:19.5]} 11... Nd7 {[%clk 0:01:47.9]} 12. Bb5 {[%clk 0:02:09.9]}
12... a6 {[%clk 0:01:36]} 13. Bxd7+ {[%clk 0:02:04.1]} 13... Qxd7 {[%clk
0:01:36.9]} 14. Na4 {[%clk 0:01:50.4]} 14... Rc8 {[%clk 0:01:36.2]} 15. O-O
{[%clk 0:01:44.5]} 15... Rxc1 {[%clk 0:01:16.4]} 16. Rxc1 {[%clk 0:01:45.4]}
16... Qb5 {[%clk 0:00:12.5]} 17. Rc8+ {[%clk 0:01:35.8]} 17... Kd7 {[%clk
0:00:12.4]} 18. Nb6+ {[%clk 0:01:32.4]} 18... Ke7 {[%clk 0:00:11]} 19. Qa3+
{[%clk 0:01:31.4]} 1-0

[Event "Early-Titled-Tuesday-Blitz-September-26-2023"]
[Site "Chess.com"]
[Date "2023.09.26"]
[Round "2"]
[White "MaevskiyNikolay"]
[Black "GMaka"]
[Result "1-0"]
[WhiteElo "2568"]
[BlackElo "2324"]
[TimeControl "180+1"]
[EndTime "8:15:37 PDT"]
[Termination "MaevskiyNikolay won by resignation"]

1. d4 {[%clk 0:03:00.9]} 1... Nf6 {[%clk 0:02:54.4]} 2. Nf3 {[%clk 0:03:00.3]}
2... e6 {[%clk 0:02:54.7]} 3. e3 {[%clk 0:03:00.4]} 3... c5 {[%clk 0:02:54.3]}
4. Bd3 {[%clk 0:03:01.3]} 4... b6 {[%clk 0:02:54.4]} 5. c4 {[%clk 0:03:01.6]}
5... Bb7 {[%clk 0:02:53.1]} 6. Nc3 {[%clk 0:03:01.5]} 6... cxd4 {[%clk
0:02:52.9]} 7. exd4 {[%clk 0:03:01.7]} 7... Bb4 {[%clk 0:02:48.1]} 8. O-O {[%clk
0:03:00.9]} 8... O-O {[%clk 0:02:44.8]} 9. Bg5 {[%clk 0:02:51.3]} 9... h6 {[%clk
0:02:33.9]} 10. Bh4 {[%clk 0:02:45.9]} 10... Be7 {[%clk 0:02:34.1]} 11. Re1
{[%clk 0:02:10.4]} 11... d5 {[%clk 0:02:33.3]} 12. Rc1 {[%clk 0:02:06.1]} 12...
Nc6 {[%clk 0:02:29]} 13. Bxf6 {[%clk 0:02:03]} 13... Bxf6 {[%clk 0:02:27.4]} 14.
cxd5 {[%clk 0:02:03.4]} 14... exd5 {[%clk 0:02:28.3]} 15. Bb1 {[%clk 0:02:02.3]}
15... g6 {[%clk 0:02:16.5]} 16. a3 {[%clk 0:02:02.2]} 16... Bg7 {[%clk
0:02:15.6]} 17. Qd3 {[%clk 0:01:56.4]} 17... Rc8 {[%clk 0:01:58.7]} 18. h4
{[%clk 0:01:55.9]} 18... h5 {[%clk 0:01:55.4]} 19. Ba2 {[%clk 0:01:50.5]} 19...
Na5 {[%clk 0:01:52.7]} 20. Ne5 {[%clk 0:01:47.1]} 20... Qxh4 {[%clk 0:01:46.4]}
21. Nxd5 {[%clk 0:01:35.1]} 21... Rxc1 {[%clk 0:01:39.8]} 22. Rxc1 {[%clk
0:01:34.6]} 22... Rc8 {[%clk 0:00:56]} 23. Rxc8+ {[%clk 0:01:30.1]} 23... Bxc8
{[%clk 0:00:56.9]} 24. Nxg6 {[%clk 0:01:25.4]} 24... fxg6 {[%clk 0:00:50.4]} 25.
Ne7+ {[%clk 0:01:25]} 25... Kh7 {[%clk 0:00:36.5]} 26. Bg8+ {[%clk 0:01:19.2]}
1-0

[Event "Early-Titled-Tuesday-Blitz-September-26-2023"]
[Site "Chess.com"]
[Date "2023.09.26"]
[Round "2"]
[White "quvnoq_muxlis"]
[Black "gau248"]
[Result "1-0"]
[WhiteElo "2825"]
[BlackElo "2591"]
[TimeControl "180+1"]
[EndTime "8:15:38 PDT"]
[Termination "quvnoq_muxlis won by checkmate"]

1. e4 {[%clk 0:02:58]} 1... c5 {[%clk 0:02:50.1]} 2. Nf3 {[%clk 0:02:57.4]} 2...
d6 {[%clk 0:02:50.4]} 3. d4 {[%clk 0:02:57.3]} 3... cxd4 {[%clk 0:02:51.3]} 4.
Nxd4 {[%clk 0:02:58.2]} 4... Nf6 {[%clk 0:02:51.3]} 5. Nc3 {[%clk 0:02:58.9]}
5... a6 {[%clk 0:02:49.5]} 6. Be2 {[%clk 0:02:58.7]} 6... e5 {[%clk 0:02:49.3]}
7. Nb3 {[%clk 0:02:59.1]} 7... Be7 {[%clk 0:02:49.9]} 8. g4 {[%clk 0:02:59.4]}
8... h6 {[%clk 0:02:42]} 9. h4 {[%clk 0:02:59.9]} 9... Be6 {[%clk 0:02:41.9]}
10. Be3 {[%clk 0:02:52.9]} 10... Nc6 {[%clk 0:02:38]} 11. Rg1 {[%clk 0:02:49.4]}
11... b5 {[%clk 0:02:34.9]} 12. g5 {[%clk 0:02:48.7]} 12... hxg5 {[%clk
0:02:35.1]} 13. hxg5 {[%clk 0:02:49.6]} 13... Nd7 {[%clk 0:02:35.4]} 14. Nd5
{[%clk 0:02:49.7]} 14... a5 {[%clk 0:02:18.7]} 15. Bxb5 {[%clk 0:02:44]} 15...
Rc8 {[%clk 0:02:18.8]} 16. a4 {[%clk 0:02:42.2]} 16... Nc5 {[%clk 0:02:07.2]}
17. Nxc5 {[%clk 0:02:13.9]} 17... dxc5 {[%clk 0:01:57.4]} 18. c3 {[%clk
0:02:13.9]} 18... Kf8 {[%clk 0:01:52.4]} 19. Qd2 {[%clk 0:02:06.7]} 19... Na7
{[%clk 0:01:50.5]} 20. Bc4 {[%clk 0:02:06.8]} 20... Rb8 {[%clk 0:01:43.8]} 21.
O-O-O {[%clk 0:01:57.4]} 21... Qe8 {[%clk 0:01:29.7]} 22. b3 {[%clk 0:01:44.3]}
22... Rh4 {[%clk 0:01:10.2]} 23. Nc7 {[%clk 0:01:25.6]} 23... Qc6 {[%clk
0:01:02]} 24. Nxe6+ {[%clk 0:01:25.6]} 24... fxe6 {[%clk 0:01:02.9]} 25. Rh1
{[%clk 0:01:22.1]} 25... Rd8 {[%clk 0:00:50.4]} 26. Rxh4 {[%clk 0:01:15.5]}
26... Rxd2 {[%clk 0:00:50]} 27. Rxd2 {[%clk 0:01:16.4]} 27... Nc8 {[%clk
0:00:49.3]} 28. Bb5 {[%clk 0:01:12.7]} 28... Qc7 {[%clk 0:00:48]} 29. Rh8+
{[%clk 0:01:12.9]} 29... Kf7 {[%clk 0:00:47.8]} 30. Be8# {[%clk 0:01:13.8]} 1-0

[Event "Early-Titled-Tuesday-Blitz-September-26-2023"]
[Site "Chess.com"]
[Date "2023.09.26"]
[Round "2"]
[White "maurovargas01"]
[Black "Gerasimenyuk_Miha"]
[Result "0-1"]
[WhiteElo "1886"]
[BlackElo "2410"]
[TimeControl "180+1"]
[EndTime "8:15:41 PDT"]
[Termination "Gerasimenyuk_Miha won by checkmate"]

1. e4 {[%clk 0:03:00.5]} 1... d5 {[%clk 0:02:55.4]} 2. e5 {[%clk 0:02:59.5]}
2... c6 {[%clk 0:02:50.2]} 3. f4 {[%clk 0:03:00.4]} 3... h5 {[%clk 0:02:49.2]}
4. g3 {[%clk 0:02:59.3]} 4... h4 {[%clk 0:02:49.1]} 5. g4 {[%clk 0:02:59]} 5...
h3 {[%clk 0:02:47]} 6. f5 {[%clk 0:02:52.8]} 6... e6 {[%clk 0:02:46.9]} 7. f6
{[%clk 0:02:27.5]} 7... gxf6 {[%clk 0:02:47.7]} 8. d4 {[%clk 0:02:21.5]} 8...
fxe5 {[%clk 0:02:44.6]} 9. dxe5 {[%clk 0:02:21.4]} 9... Qh4+ {[%clk 0:02:42.9]}
10. Kd2 {[%clk 0:02:19.5]} 10... Bh6+ {[%clk 0:02:38.2]} 11. Kc3 {[%clk
0:02:14.3]} 11... Bxc1 {[%clk 0:02:34.6]} 12. Qxc1 {[%clk 0:02:13.7]} 12... Qxg4
{[%clk 0:02:32.2]} 13. b3 {[%clk 0:02:12.3]} 13... Qe4 {[%clk 0:02:28.3]} 14.
Qg5 {[%clk 0:01:59]} 14... Ne7 {[%clk 0:02:15.4]} 15. Kb2 {[%clk 0:01:58.6]}
15... Qxh1 {[%clk 0:02:13.7]} 16. Bxh3 {[%clk 0:01:49.1]} 16... Rg8 {[%clk
0:02:11.6]} 17. Qe3 {[%clk 0:01:40.8]} 17... Qxg1 {[%clk 0:02:10.9]} 18. Qf3
{[%clk 0:01:32.7]} 18... Qxh2 {[%clk 0:02:09]} 19. Nc3 {[%clk 0:01:29]} 19...
Rg3 {[%clk 0:02:07.3]} 20. Nxd5 {[%clk 0:00:56.3]} 20... cxd5 {[%clk 0:02:08.1]}
21. Qh5 {[%clk 0:00:47.3]} 21... Qxh3 {[%clk 0:02:07.3]} 22. Qe2 {[%clk
0:00:46]} 22... Nbc6 {[%clk 0:02:05.8]} 23. Rf1 {[%clk 0:00:43]} 23... Bd7
{[%clk 0:01:59.8]} 24. Qf2 {[%clk 0:00:42.3]} 24... Nf5 {[%clk 0:01:58.9]} 25.
Rd1 {[%clk 0:00:29.9]} 25... O-O-O {[%clk 0:01:55.9]} 26. b4 {[%clk 0:00:26.5]}
26... Rg2 {[%clk 0:01:54.3]} 27. Qc5 {[%clk 0:00:17.7]} 27... Ne3 {[%clk
0:01:53.9]} 28. Rc1 {[%clk 0:00:12.6]} 28... Nc4+ {[%clk 0:01:51.3]} 29. Ka1
{[%clk 0:00:11]} 29... Qc3+ {[%clk 0:01:50.7]} 30. Kb1 {[%clk 0:00:09.7]} 30...
Na3# {[%clk 0:01:50.8]} 0-1

[Event "Early-Titled-Tuesday-Blitz-September-26-2023"]
[Site "Chess.com"]
[Date "2023.09.26"]
[Round "2"]
[White "KononenkoD"]
[Black "BeautiFullMindChess"]
[Result "1-0"]
[WhiteElo "2603"]
[BlackElo "2346"]
[TimeControl "180+1"]
[EndTime "8:15:45 PDT"]
[Termination "KononenkoD won by resignation"]

1. e4 {[%clk 0:03:00.9]} 1... e5 {[%clk 0:02:55.7]} 2. Nf3 {[%clk 0:03:00.9]}
2... Nc6 {[%clk 0:02:55]} 3. d4 {[%clk 0:03:01.4]} 3... exd4 {[%clk 0:02:55.1]}
4. Nxd4 {[%clk 0:03:02.3]} 4... Nf6 {[%clk 0:02:47.7]} 5. Nc3 {[%clk 0:03:02.4]}
5... Bb4 {[%clk 0:02:46.4]} 6. Nxc6 {[%clk 0:03:02.6]} 6... bxc6 {[%clk
0:02:46.7]} 7. Bd3 {[%clk 0:03:02.5]} 7... d5 {[%clk 0:02:46.5]} 8. O-O {[%clk
0:03:01.5]} 8... O-O {[%clk 0:02:45.8]} 9. Bd2 {[%clk 0:02:59.7]} 9... Rb8
{[%clk 0:02:42.7]} 10. e5 {[%clk 0:02:45.3]} 10... Nd7 {[%clk 0:02:41.8]} 11. f4
{[%clk 0:02:44.3]} 11... f6 {[%clk 0:02:39.7]} 12. e6 {[%clk 0:02:42.9]} 12...
Nc5 {[%clk 0:02:37]} 13. f5 {[%clk 0:02:42.4]} 13... Nxd3 {[%clk 0:02:34.9]} 14.
cxd3 {[%clk 0:02:43.3]} 14... Bd6 {[%clk 0:02:14.1]} 15. Rb1 {[%clk 0:02:41.4]}
15... Ba6 {[%clk 0:02:10.5]} 16. Rf3 {[%clk 0:02:40.1]} 16... Be5 {[%clk
0:01:55.4]} 17. Rh3 {[%clk 0:02:38.7]} 17... Qe8 {[%clk 0:01:39.3]} 18. Qg4
{[%clk 0:02:38.2]} 18... g5 {[%clk 0:01:02.8]} 19. d4 {[%clk 0:02:16.9]} 19...
Bd6 {[%clk 0:00:56.1]} 20. b3 {[%clk 0:02:12.5]} 20... Kh8 {[%clk 0:00:48.6]}
21. Re1 {[%clk 0:02:10.9]} 21... Qe7 {[%clk 0:00:48.4]} 22. Rh6 {[%clk
0:02:07.3]} 22... Rg8 {[%clk 0:00:40.9]} 23. Re3 {[%clk 0:02:07]} 23... Rg7
{[%clk 0:00:39.7]} 24. Reh3 {[%clk 0:02:03.6]} 24... Rf8 {[%clk 0:00:33.6]} 25.
Qh5 {[%clk 0:02:01.8]} 25... Bb7 {[%clk 0:00:25.6]} 26. Na4 {[%clk 0:01:53.5]}
26... c5 {[%clk 0:00:21.4]} 27. Nxc5 {[%clk 0:01:45.2]} 27... Bxc5 {[%clk
0:00:21.7]} 28. dxc5 {[%clk 0:01:46.1]} 28... d4 {[%clk 0:00:22.3]} 29. b4
{[%clk 0:01:43.9]} 29... Qd8 {[%clk 0:00:18.2]} 30. Rxh7+ {[%clk 0:01:41.8]} 1-0